bitfinex/quotes_ETHUSD_20251215
["timestamp","ask_amount","ask_price","bid_price","bid_amount"]
[1765811235258,0.001,3049.5,3048.2,6.56124926]
[1765811235451,0.405504,3049.4,3048.2,6.56124926]
[1765811235669,0.605004,3049.4,3048.2,10.43687389]
[1765811235863,3.74645865,3049.5,3048.3,0.58047529]
[1765811235864,0.001,3049.5,3048.3,0.58047529]
[1765811236382,0.001,3049.5,3048.4,0.595]
[1765811236593,0.001,3049.5,3048.7,0.58047529]
[1765811236772,0.001,3049.5,3048.9,0.58047529]
[1765811236975,0.001,3049.5,3049.0,0.595]
[1765811237154,0.001,3049.5,3049.1,0.1161]
[1765811237360,0.4672,3050.8,3049.6,0.58047529]
[1765811237361,0.001,3050.8,3049.6,0.58047529]
[1765811237662,0.001,3050.8,3049.8,3.27890353]
[1765811237891,0.001,3050.8,3049.8,6.55780706]
[1765811238181,0.001,3050.8,3049.9,0.58047529]
[1765811238384,0.001,3050.8,3050.5,6.82066363]
[1765811238560,0.4662,3052.5,3050.6,0.61325572]
[1765811238762,0.01964926,3052.4,3050.6,0.1141]
[1765811238986,0.1995,3052.7,3049.9,6.82066363]
[1765811238987,0.1995,3052.7,3050.8,0.58047529]
[1765811239155,0.1995,3052.7,3050.7,0.74187936]
[1765811239156,0.4662,3053.6,3051.5,0.58047529]
[1765811239355,0.1995,3053.9,3051.9,4.75804529]
[1765811239582,6.54943182,3053.7,3052.0,3.27653997]
[1765811239779,6.54943182,3053.7,3050.4,3.27818772]
[1765811239780,0.58047529,3053.4,3051.5,3.27703233]
[1765811239981,0.48584926,3054.5,3052.0,0.58047529]
[1765811240188,0.1995,3054.4,3052.5,0.58047529]
[1765811240389,0.1995,3054.4,3052.6,0.595]
[1765811240691,15.107309,3053.9,3051.9,3.2766047]
[1765811240853,15.107309,3053.9,3051.7,3.27685393]
[1765811240854,0.405504,3053.5,3051.8,3.27672248]
[1765811241061,14.967249,3053.2,3050.6,3.27798822]
[1765811241259,0.405504,3052.9,3050.8,3.27775773]
[1765811241461,0.01964926,3052.5,3050.9,0.38727577]
[1765811241789,1.00562855,3052.3,3050.6,3.27794381]
[1765811241992,1.00562855,3052.3,3049.7,0.03279011]
[1765811242287,1.00562855,3052.3,3050.7,3.27791786]
[1765811242288,0.405504,3052.1,3050.7,3.27791786]
[1765811242454,0.4662,3052.2,3050.4,3.27824503]
[1765811242659,2.961731,3052.0,3050.5,0.595]
[1765811242868,0.48584926,3052.1,3050.9,6.55544264]
[1765811243279,0.4662,3052.1,3050.9,6.55544264]
[1765811243673,0.4662,3052.1,3050.6,3.27796246]
[1765811243674,0.4662,3052.8,3051.0,0.595]
[1765811243897,6.57122873,3052.7,3051.0,0.595]
[1765811244196,0.4662,3052.6,3051.1,0.595]
[1765811244403,0.4662,3052.6,3051.2,0.595]
[1765811244619,0.4662,3052.6,3050.9,0.58047529]
[1765811244796,3.87057404,3052.9,3051.0,3.42496613]
[1765811244965,0.4662,3053.3,3051.4,5.41307]
[1765811245165,0.01964926,3052.9,3051.1,1.09882943]
[1765811245372,0.4662,3054.0,3051.7,6.82066363]
[1765811245588,0.001,3052.1,3052.0,7.44868326]
[1765811245792,0.01964926,3054.5,3052.2,0.58047529]
[1765811245793,0.001,3053.4,3052.2,0.58047529]
[1765811246010,0.1995,3055.3,3053.0,0.58047529]
[1765811246194,0.001,3054.6,3054.0,0.58047529]
[1765811246378,0.001,3054.6,3053.1,1.03325759]
[1765811246379,0.001,3054.6,3053.3,6.82066363]
[1765811246578,0.001,3054.6,3048.5,4.06108308]
[1765811246579,0.4662,3054.5,3052.3,0.1061]
[1765811246783,0.001,3054.6,3052.7,2.136646]
[1765811246983,0.001,3054.6,3052.9,14.054857]
[1765811247174,0.001,3054.6,3053.0,0.594]
[1765811247502,0.01964926,3054.3,3052.8,0.594]
[1765811247708,0.01964926,3054.3,3051.8,0.68206636]
[1765811247709,0.01964926,3053.7,3051.8,0.68206636]
[1765811248021,0.405504,3054.0,3051.8,0.594]
[1765811248318,0.405504,3053.9,3051.9,0.7001]
[1765811248493,0.405504,3053.9,3051.7,6.82066363]
[1765811248494,0.405504,3053.9,3052.1,3.27633644]
[1765811248800,0.405504,3053.9,3051.7,3.27676097]
[1765811248801,0.42515326,3053.5,3051.7,3.27676097]
[1765811249004,14.573208,3053.1,3051.2,3.27729603]
[1765811249172,14.573208,3053.1,3050.2,3.38452993]
[1765811249173,0.58047529,3052.8,3050.7,0.594]
[1765811249369,0.58047529,3052.9,3050.1,0.03278581]
[1765811249682,0.58047529,3051.7,3049.2,0.594]
[1765811249999,0.594,3051.6,3049.2,0.594]
[1765811250173,0.594,3051.6,3049.3,0.76326513]
[1765811250371,0.4574,3051.5,3049.3,0.76326513]
[1765811250791,0.58047529,3051.3,3048.9,13.71348568]
[1765811250992,0.405504,3051.1,3049.0,0.58047529]
[1765811251194,0.405504,3051.1,3048.9,13.81958568]
[1765811251195,0.98597929,3050.9,3048.9,6.55974284]
[1765811251398,0.405504,3050.9,3048.9,9.83961426]
[1765811251579,6.55608732,3050.6,3049.1,6.55931258]
[1765811251783,0.594,3051.2,3049.1,6.55931258]
[1765811251784,0.4504,3051.4,3049.2,3.39109]
[1765811252082,0.4504,3051.4,3049.4,2.71991529]
[1765811252280,0.4504,3051.4,3049.4,0.58047529]
[1765811252583,0.4504,3051.4,3049.5,0.76191266]
[1765811252584,0.596104,3051.3,3049.5,0.76191266]
[1765811252893,0.596104,3051.3,3049.4,0.58047529]
[1765811253095,0.596104,3051.3,3049.3,0.002]
[1765811253310,0.405504,3051.1,3049.3,0.002]
[1765811253602,3.68303829,3051.1,3049.4,0.61326862]
[1765811253807,4.27703829,3051.1,3049.4,0.58047529]
[1765811253994,0.405504,3050.9,3049.5,1.04207988]
[1765811254311,0.405504,3050.9,3049.3,3.28144118]
[1765811254606,0.4504,3050.8,3049.3,9.84032354]
[1765811254906,0.855904,3050.9,3049.3,6.56088236]
[1765811255073,0.855904,3050.9,3049.3,0.002]
[1765811255278,0.405504,3050.7,3049.3,0.33015194]
[1765811255502,0.999504,3050.7,3049.3,0.92415194]
[1765811255820,0.405504,3050.5,3049.3,0.33015194]
[1765811255978,3.72844366,3050.6,3049.3,6.56085102]
[1765811256178,1.0444,3050.6,3049.3,6.56085102]
[1765811256491,0.855904,3050.5,3049.3,6.56086671]
[1765811256690,0.405504,3050.7,3049.3,9.84030789]
[1765811256908,0.594,3050.9,3049.4,1.31198442]
[1765811257387,3.72791033,3051.1,3049.5,0.594]
[1765811257585,0.4504,3051.1,3049.6,9.83735571]
[1765811257908,0.4504,3051.1,3049.4,1.31198442]
[1765811257909,0.855904,3051.0,3049.4,1.31198442]
[1765811258122,1.43637929,3051.0,3049.5,3.27917174]
[1765811258290,0.594,3051.2,3049.5,13.11685004]
[1765811258608,6.7441759,3051.8,3049.6,0.71936647]
[1765811258913,0.01964926,3051.6,3049.5,9.83762394]
[1765811259107,0.98597929,3051.4,3049.6,0.98376239]
[1765811259303,0.405504,3051.4,3049.6,0.98376239]
[1765811259477,0.405504,3051.2,3049.6,1.56423768]
[1765811259828,0.405504,3051.2,3049.7,9.83703315]
[1765811260024,3.85744125,3051.7,3049.7,9.83703315]
[1765811260025,0.4504,3052.2,3050.0,0.58047529]
[1765811260311,0.4504,3052.2,3050.6,0.58047529]
[1765811260485,3.27548315,3053.0,3050.9,13.224159]
[1765811260692,3.27548315,3053.0,3050.5,7.03865132]
[1765811260693,3.27635855,3052.2,3051.0,0.03277613]
[1765811260880,3.27635855,3052.2,3050.7,0.594]
[1765811260881,3.27744107,3052.1,3050.7,0.594]
[1765811261076,0.001,3052.1,3050.7,0.594]
[1765811261387,0.001,3052.1,3050.8,15.281262]
[1765811261707,0.001,3052.1,3051.8,7.03865132]
[1765811261847,2.56009581,3053.2,3052.1,0.58047529]
[1765811262048,0.4504,3054.5,3052.5,7.03865132]
[1765811262252,0.001,3054.6,3052.8,0.58047529]
[1765811262413,0.001,3054.6,3052.9,0.594]
[1765811262414,3.27437627,3054.1,3052.9,0.594]
[1765811262614,0.01964926,3054.0,3052.9,0.594]
[1765811262812,0.01964926,3054.4,3052.9,0.594]
[1765811263040,0.001,3054.6,3053.2,13.351685]
[1765811263249,0.001,3054.6,3053.6,7.03865132]
[1765811263419,0.001,3054.6,3053.6,0.1051]
[1765811263610,0.001,3054.6,3053.7,0.594]
[1765811263811,0.01964926,3054.3,3053.1,3.27535947]
[1765811264011,0.01964926,3054.1,3053.1,3.60289542]
[1765811264240,0.01964926,3054.1,3053.0,3.27541792]
[1765811264449,0.4514,3054.6,3053.0,6.6560335]
[1765811264450,0.001,3054.6,3053.0,6.6560335]
[1765811264658,8.0,3055.0,3053.2,0.405504]
[1765811264815,8.0,3055.0,3054.1,0.58047529]
[1765811265152,7.8959,3055.0,3054.9,0.1041]
[1765811265353,3.27096689,3057.2,3055.0,0.98597929]
[1765811265641,0.594,3057.3,3055.6,14.653813]
[1765811265811,0.641,3057.6,3055.9,0.58047529]
[1765811266018,3.28987531,3057.9,3056.0,1.07250968]
[1765811266215,0.594,3058.0,3056.0,8.111161]
[1765811266414,7.13424,3058.0,3056.2,0.58047529]
[1765811266646,1.03087529,3057.9,3056.0,1.03978717]
[1765811266849,1.74429929,3057.9,3055.9,1.17147529]
[1765811267051,0.01964926,3057.5,3055.9,1.17147529]
[1765811267356,0.01964926,3057.7,3056.0,0.03272251]
[1765811267517,0.01964926,3058.8,3056.4,7.03865132]
[1765811267716,0.01964926,3059.0,3057.0,7.03865132]
[1765811267717,0.001,3058.6,3057.0,7.03865132]
[1765811268033,0.001,3058.6,3057.1,11.1100868]
[1765811268432,0.01964926,3057.9,3056.2,3.2720272]
[1765811268633,0.01964926,3057.5,3056.1,3.27213504]
[1765811268844,0.01964926,3057.5,3055.7,7.03865132]
[1765811269144,0.01964926,3057.1,3055.8,0.593]
[1765811269312,0.01964926,3057.3,3056.7,3.27148236]
[1765811269514,0.01964926,3057.3,3056.9,3.27118726]
[1765811269718,0.01964926,3057.3,3056.5,3.27170528]
[1765811269958,3.27049409,3058.6,3056.5,0.61319245]
[1765811270115,0.001,3058.6,3057.2,0.58047529]
[1765811270317,0.001,3058.6,3057.3,0.593]
[1765811270551,3.27048281,3058.6,3057.1,0.58047529]
[1765811270749,0.001,3058.6,3057.4,0.593]
[1765811270956,0.001,3058.6,3056.6,1.45879494]
[1765811270957,1.0434,3058.5,3056.6,1.45879494]
[1765811271126,1.0434,3058.5,3056.8,0.58047529]
[1765811271456,0.58047529,3058.5,3056.7,0.20392702]
[1765811271626,0.01964926,3057.9,3056.8,0.593]
[1765811271954,0.01964926,3058.1,3056.9,6.5425758]
[1765811272161,0.01964926,3058.3,3056.9,3.8642879]
[1765811272328,0.01964926,3057.6,3056.8,0.1662722]
[1765811272515,0.01964926,3057.6,3055.5,7.03865132]
[1765811272720,0.01964926,3057.7,3056.8,3.27139492]
[1765811272924,0.01964926,3057.7,3056.2,0.58047529]
[1765811272925,0.01964926,3057.7,3055.9,3.2722677]
[1765811273126,0.4504,3057.6,3056.0,0.32722677]
[1765811273436,0.4504,3057.6,3056.8,3.27138572]
[1765811273767,6.5396108,3058.3,3056.9,0.58047529]
[1765811273966,0.4504,3058.4,3057.1,6.54214778]
[1765811274166,3.72013892,3058.4,3057.1,6.54214778]
[1765811274346,10.25961676,3058.4,3057.1,0.58047529]
[1765811274663,3.72013892,3058.4,3057.1,0.58047529]
[1765811274849,3.72013892,3058.4,3057.1,1.29275603]
[1765811274850,0.405504,3058.3,3057.1,1.29275603]
[1765811275653,0.001,3058.6,3057.2,0.593]
[1765811275856,0.001,3058.6,3057.2,6.54193378]
[1765811276043,0.4504,3058.5,3057.3,0.58047529]
[1765811276355,0.001,3058.6,3057.3,0.58047529]
[1765811276680,0.4504,3058.5,3057.3,0.58047529]
[1765811276962,0.4504,3058.5,3057.1,6.54205366]
[1765811277170,1.0424,3058.5,3056.5,3.27171172]
[1765811277465,0.405504,3058.4,3056.6,0.592]
[1765811277651,0.4504,3058.5,3057.1,6.54214778]
[1765811277851,0.4504,3058.5,3057.4,0.58047529]
[1765811278022,0.001,3058.4,3057.4,0.58047529]
[1765811278751,0.001,3058.4,3057.8,0.405504]
[1765811278952,0.001,3058.4,3058.2,0.58047529]
[1765811279130,0.001,3058.4,3058.3,0.405504]
[1765811279327,0.001,3059.7,3058.8,13.326249]
[1765811279625,0.001,3059.7,3058.2,7.80056398]
[1765811279824,0.001,3059.7,3058.6,27.01177176]
[1765811280059,0.001,3059.7,3058.7,0.03269362]
[1765811280276,0.001,3059.7,3058.8,0.592]
[1765811280479,0.001,3059.7,3058.6,0.58047529]
[1765811280780,0.001,3059.7,3055.9,0.01964926]
[1765811280781,0.4504,3059.6,3057.4,3.27065188]
[1765811280942,0.405504,3059.5,3058.5,3.26956136]
[1765811281146,0.001,3059.7,3058.9,0.58047529]
[1765811281369,0.001,3059.7,3058.8,7.03865132]
[1765811281370,0.001,3059.7,3059.2,0.58047529]
[1765811281649,0.001,3059.7,3059.1,5.82729878]
[1765811281978,3.26840109,3059.6,3058.0,0.592]
[1765811282177,0.001,3059.7,3058.7,5.82729878]
[1765811282479,0.001,3059.7,3059.3,0.58047529]
[1765811282647,0.001,3059.8,3059.7,0.98597929]
[1765811282856,0.001,3059.8,3059.7,6.40777407]
[1765811283154,0.001,3061.1,3058.5,0.592]
[1765811283155,0.4879,3060.5,3058.5,0.592]
[1765811283383,0.4879,3060.5,3058.6,5.85999347]
[1765811283609,0.405504,3060.4,3058.7,0.58047529]
[1765811283891,0.405504,3060.4,3058.6,3.26946969]
[1765811283892,0.405504,3060.0,3058.6,3.26946969]
[1765811284055,0.98597929,3059.8,3057.0,3.27115233]
[1765811284252,0.405504,3059.6,3057.1,0.592]
[1765811284459,0.405504,3059.6,3056.8,5.82729878]
[1765811284460,0.98597929,3059.4,3056.8,5.82729878]
[1765811284781,0.405504,3059.2,3056.8,5.82729878]
[1765811284952,0.405504,3059.2,3056.7,0.592]
[1765811284953,0.01964926,3058.9,3056.9,0.67464275]
[1765811285154,0.01964926,3058.9,3056.3,5.186464]
[1765811285355,0.405504,3058.7,3056.6,5.82729878]
[1765811285543,0.405504,3058.7,3056.5,0.58047529]
[1765811285544,0.405504,3058.5,3056.5,0.58047529]
[1765811285749,0.405504,3058.5,3053.8,1.69582521]
[1765811285750,0.405504,3058.3,3056.0,5.82729878]
[1765811286083,0.405504,3058.2,3056.7,30.0]
[1765811286378,0.405504,3058.2,3056.6,13.08643588]
[1765811286379,0.893404,3058.5,3056.8,3.592]
[1765811286578,0.893404,3058.5,3056.9,6.143898]
[1765811286884,0.405504,3058.6,3057.3,0.58047529]
[1765811287084,0.01964926,3058.7,3057.4,4.52142752]
[1765811287258,0.01964926,3058.7,3057.5,0.51019028]
[1765811287464,0.50754926,3058.7,3057.0,0.592]
[1765811287663,0.98597929,3058.6,3056.6,13.08643588]
[1765811287884,6.53915316,3058.5,3056.9,9.8138637]
[1765811288078,3.28901274,3058.7,3056.9,13.0851516]
[1765811288288,0.4879,3058.8,3057.2,5.82729878]
[1765811288591,3.75716073,3058.8,3057.3,1.17472988]
[1765811288779,0.405504,3058.7,3057.3,0.592]
[1765811289092,0.893404,3058.7,3057.3,0.592]
[1765811289261,0.01964926,3058.4,3057.3,0.592]
[1765811289592,0.01964926,3058.9,3057.3,0.592]
[1765811289754,0.01964926,3058.9,3057.4,0.64192988]
[1765811289755,0.42515326,3058.7,3057.4,0.64192988]
[1765811289950,0.4879,3058.8,3057.4,0.64192988]
[1765811289951,0.4879,3058.8,3057.4,0.58047529]
[1765811290157,3.26939036,3058.7,3057.4,0.58047529]
[1765811290387,3.26939036,3058.7,3057.3,9.8125797]
[1765811290388,0.98597929,3058.6,3057.3,3.2708599]
[1765811290596,1.47387929,3058.6,3057.3,6.5417198]
[1765811290757,0.405504,3058.4,3057.3,3.2708599]
[1765811290956,0.405504,3057.3,3055.2,3.27309549]
[1765811291287,0.01964926,3057.9,3057.2,3.27096689]
[1765811291460,0.591,3058.2,3057.2,6.54193378]
[1765811291461,0.405504,3058.2,3057.2,6.54193378]
[1765811291999,0.98597929,3057.1,3055.9,0.002]
[1765811292159,0.405504,3057.1,3055.9,0.002]
[1765811292354,0.405504,3056.9,3055.9,0.002]
[1765811292857,0.4879,3056.9,3055.9,0.002]
[1765811293079,0.996504,3056.8,3055.9,0.002]
[1765811293785,0.4879,3057.5,3055.9,0.002]
[1765811294099,3.67649462,3057.2,3055.9,0.58247529]
[1765811294283,6.94750405,3057.2,3055.9,0.002]
[1765811294467,0.4879,3057.1,3055.9,0.002]
[1765811294669,6.02549878,3058.3,3055.9,0.002]
[1765811294670,0.1982,3058.3,3055.9,0.58247529]
[1765811294869,0.4879,3058.8,3056.1,3.61175129]
[1765811295194,0.591,3058.7,3056.2,0.61319566]
[1765811295393,6.3041,3058.6,3056.2,0.591]
[1765811295692,19.512473,3058.4,3055.9,0.58247529]
[1765811295865,0.98597929,3057.9,3055.9,0.002]
[1765811296199,0.405504,3057.1,3055.9,0.002]
[1765811296368,0.603704,3056.0,3055.9,0.002]
[1765811296563,0.603704,3056.0,3054.7,3.27357447]
[1765811296564,0.405504,3055.9,3054.7,3.27357447]
[1765811296795,0.893404,3055.9,3053.7,3.27463159]
[1765811297100,0.4879,3055.9,3054.6,3.27564718]
[1765811297291,1.484404,3055.8,3055.6,0.002]
[1765811297665,0.405504,3055.6,3054.6,0.002]
[1765811298075,0.01964926,3054.7,3054.6,0.002]
[1765811298298,1.01615326,3054.7,3054.6,0.002]
[1765811298598,0.405504,3054.6,3053.6,0.03274823]
[1765811298802,1.0789,3054.7,3053.6,0.6584609]
[1765811299231,0.58047529,3055.3,3053.6,1.23893619]
[1765811299232,0.405504,3055.2,3053.6,1.23893619]
[1765811299369,0.01964926,3054.0,3053.5,6.5498608]
[1765811299569,0.01964926,3054.0,3053.5,3.2749304]
[1765811299805,0.01964926,3054.0,3052.1,5.82729878]
[1765811299806,0.405504,3053.9,3052.2,3.27625823]
[1765811300004,0.98597929,3053.7,3051.8,3.2767547]
[1765811300295,0.996504,3053.7,3051.9,0.97011535]
[1765811300495,0.405504,3053.5,3051.9,0.97011535]
[1765811300709,0.4879,3053.4,3052.0,0.591]
[1765811300909,0.01964926,3052.7,3051.8,6.5535094]
[1765811301205,0.405504,3053.3,3051.8,9.8302641]
[1765811301369,0.4879,3053.4,3051.8,9.8302641]
[1765811301370,0.405504,3053.1,3051.8,3.2767547]
[1765811301871,0.01964926,3052.2,3051.0,3.27756605]
[1765811302203,0.01964926,3052.2,3050.5,5.82729878]
[1765811302376,0.01964926,3052.2,3050.8,0.591]
[1765811302576,0.405504,3052.1,3050.4,0.58047529]
[1765811302916,0.01964926,3052.4,3050.8,12.145944]
[1765811303118,0.4879,3053.6,3051.7,5.82729878]
[1765811303415,0.4879,3053.6,3052.0,0.58047529]
[1765811303631,0.4879,3053.6,3052.1,0.591]
[1765811304090,0.01964926,3053.3,3052.4,5.82729878]
[1765811304289,0.01964926,3053.9,3052.4,2.54291751]
[1765811304810,0.1982,3054.5,3053.1,0.58047529]
[1765811305022,0.4879,3054.4,3052.6,0.58047529]
[1765811305174,0.4879,3054.4,3052.7,0.03275788]
[1765811305379,0.4879,3054.4,3052.7,0.591]
[1765811305818,0.4879,3054.4,3052.4,7.77921629]
[1765811305819,1.06837529,3054.4,3052.4,1.95191751]
[1765811306110,0.01964926,3053.6,3052.7,0.58047529]
[1765811306410,0.01964926,3053.8,3052.7,0.58047529]
[1765811306594,0.01964926,3053.5,3052.6,9.82768785]
[1765811306795,0.01964926,3053.5,3052.6,16.37947975]
[1765811306999,0.01964926,3053.5,3052.6,3.27589595]
[1765811307198,0.01964926,3054.0,3052.6,13.95396488]
[1765811307411,0.405504,3054.2,3052.7,0.58047529]
[1765811307611,0.4879,3054.0,3052.7,0.58047529]
[1765811307797,0.01964926,3053.4,3052.7,0.58047529]
[1765811308011,0.01964926,3053.4,3052.8,9.82704402]
[1765811308310,0.01964926,3053.8,3052.9,1.62122722]
[1765811308513,0.01964926,3053.8,3052.8,3.27568134]
[1765811308514,0.893404,3053.7,3052.8,3.27568134]
[1765811308713,0.01964926,3053.8,3052.8,13.10272536]
[1765811308881,0.01964926,3053.6,3052.9,0.58047529]
[1765811309287,0.01964926,3053.4,3052.8,9.82704402]
[1765811309488,0.01964926,3053.6,3052.8,10.86884842]
[1765811309796,0.01964926,3053.7,3052.9,0.58047529]
[1765811310127,0.01964926,3053.7,3053.0,6.5509335]
[1765811310335,0.01964926,3053.1,3052.8,3.27565781]
[1765811310625,0.01964926,3052.9,3050.5,3.27807297]
[1765811310784,0.405504,3052.7,3051.5,3.27702838]
[1765811310989,0.996504,3052.7,3051.1,3.27743693]
[1765811311199,0.996504,3052.7,3050.7,3.27789668]
[1765811311200,0.183,3052.6,3052.2,3.27632527]
[1765811311420,0.90225326,3052.5,3050.8,3.27777196]
[1765811311622,0.90225326,3052.5,3051.6,3.27694863]
[1765811311822,0.405504,3052.3,3050.0,9.10796811]
[1765811311983,0.98597929,3051.9,3050.1,6.55711124]
[1765811312183,0.4785,3052.2,3050.2,2.984918]
[1765811312421,0.405504,3051.8,3050.1,0.91079681]
[1765811312907,0.01964926,3051.6,3050.1,0.91079681]
[1765811313106,0.01964926,3052.0,3050.5,0.58047529]
[1765811313294,0.01964926,3051.6,3050.5,0.591]
[1765811313613,0.01964926,3051.6,3050.0,0.002]
[1765811313813,0.405504,3051.4,3050.0,0.002]
[1765811314017,0.405504,3051.4,3050.1,1.04293881]
[1765811314265,0.01964926,3050.8,3050.1,3.2785624]
[1765811314395,0.01964926,3050.8,3050.0,0.002]
[1765811314585,0.405504,3050.7,3050.0,0.002]
[1765811315019,0.405504,3050.5,3050.0,0.002]
[1765811315324,0.01964926,3050.2,3050.0,0.002]
[1765811315686,0.4785,3050.1,3050.0,0.002]
[1765811315892,0.884004,3050.1,3049.5,0.002]
[1765811316119,0.195,3049.6,3049.5,0.002]
[1765811316296,1.05897529,3050.1,3049.5,0.002]
[1765811316297,0.405504,3049.8,3049.5,0.002]
[1765811316499,0.01964926,3049.6,3049.5,0.002]
[1765811316809,0.01964926,3049.6,3048.3,0.002]
[1765811317000,0.405504,3049.4,3048.3,0.002]
[1765811317204,0.4785,3049.5,3048.3,0.002]
[1765811317419,0.4785,3049.5,3048.3,0.58247529]
[1765811317585,0.4785,3049.5,3048.3,0.002]
[1765811317796,0.01964926,3049.6,3048.3,0.002]
[1765811318044,0.01964926,3050.2,3049.0,0.58047529]
[1765811318350,0.01964926,3050.6,3049.2,0.58047529]
[1765811318518,0.01964926,3050.6,3049.3,1.36991005]
[1765811318930,0.01964926,3050.3,3049.3,1.36991005]
[1765811319112,0.01964926,3050.1,3049.2,0.58047529]
[1765811319312,0.49814926,3050.3,3049.2,0.58047529]
[1765811319566,0.01964926,3050.1,3049.2,0.58047529]
[1765811319853,0.01964926,3049.9,3049.2,0.58047529]
[1765811320020,0.01964926,3049.5,3049.1,3.27965629]
[1765811320346,0.01964926,3049.5,3048.3,0.002]
[1765811320530,0.4785,3049.4,3048.3,0.002]
[1765811320932,0.405504,3049.3,3048.3,0.002]
[1765811321132,1.22926929,3049.3,3048.3,0.002]
[1765811321444,0.405504,3049.1,3048.3,0.002]
[1765811321774,0.405504,3049.1,3048.0,0.002]
[1765811321775,0.405504,3048.9,3048.0,0.002]
[1765811321944,0.4785,3049.2,3048.0,0.002]
[1765811322141,0.62015326,3049.5,3048.0,0.58247529]
[1765811322142,1.21115326,3049.5,3048.0,0.58247529]
[1765811322333,0.62015326,3049.5,3048.1,1.69872129]
[1765811323739,0.01964926,3049.1,3048.1,1.69872129]
[1765811324213,0.01964926,3049.1,3048.3,0.58047529]
[1765811324958,0.01964926,3048.9,3048.3,0.58047529]
[1765811325127,0.01964926,3048.6,3048.0,0.002]
[1765811325652,0.01964926,3048.6,3048.1,6.56143154]
[1765811325837,0.49814926,3048.6,3048.1,6.56143154]
[1765811326045,0.49814926,3048.6,3048.0,0.002]
[1765811326046,0.01964926,3048.2,3048.0,3.28281228]
[1765811326242,0.01964926,3048.2,3048.0,0.002]
[1765811326440,0.591,3048.3,3048.0,0.002]
[1765811326651,1.0695,3048.3,3048.0,0.002]
[1765811326859,0.405504,3048.2,3048.0,0.002]
[1765811327031,0.01964926,3048.2,3048.0,0.002]
[1765811327224,3.2797986,3049.0,3048.0,0.002]
[1765811327225,0.4785,3048.9,3048.0,0.002]
[1765811327655,0.591,3049.2,3048.0,0.002]
[1765811327854,0.16997389,3051.0,3048.0,0.002]
[1765811327855,0.4785,3050.1,3048.3,0.58047529]
[1765811328165,0.01964926,3049.8,3048.6,0.58047529]
[1765811328526,0.01964926,3049.8,3048.5,6.56060356]
[1765811328527,0.01964926,3049.2,3048.5,6.56060356]
[1765811328728,0.01964926,3049.4,3048.5,13.12120712]
[1765811328947,0.01964926,3049.8,3048.6,1.892596]
[1765811329451,0.01964926,3049.8,3048.7,0.03280086]
[1765811329756,0.01964926,3049.8,3048.8,0.58047529]
[1765811329944,0.01964926,3049.6,3048.5,9.84090534]
[1765811330147,0.591,3050.1,3048.5,9.84090534]
[1765811330148,0.4785,3050.6,3049.0,13.1190554]
[1765811330460,1.17147529,3050.5,3049.0,6.5595277]
[1765811330661,0.405504,3050.4,3049.0,6.5595277]
[1765811330955,0.884004,3050.4,3049.0,6.5595277]
[1765811331139,0.4785,3050.3,3049.0,9.83929155]
[1765811331333,0.4785,3050.3,3049.0,6.5595277]
[1765811331334,0.01964926,3049.7,3049.0,6.5595277]
[1765811331549,0.01964926,3049.5,3049.0,6.5595277]
[1765811331759,0.49814926,3049.9,3049.0,13.1190554]
[1765811331957,0.4785,3050.5,3049.1,1.89238083]
[1765811332127,0.591,3050.4,3049.1,1.89238083]
[1765811332328,0.591,3050.4,3049.3,0.58047529]
[1765811332724,0.01964926,3050.9,3049.3,6.85374878]
[1765811332929,0.01964926,3050.7,3049.4,2.32514924]
[1765811333338,0.001,3050.8,3049.9,0.58047529]
[1765811333560,0.001,3050.8,3049.9,1.17147529]
[1765811333748,0.001,3050.8,3050.4,0.58047529]
[1765811334084,0.49814926,3052.7,3050.5,1.25005639]
[1765811334372,0.49814926,3052.7,3050.7,0.58047529]
[1765811334373,0.58047529,3052.3,3050.7,0.58047529]
[1765811334957,0.01964926,3051.5,3050.7,0.58047529]
[1765811335130,0.01964926,3051.5,3050.6,6.55608732]
[1765811335327,0.195,3050.7,3049.3,0.0171]
[1765811335530,0.405504,3050.6,3049.6,3.27904249]
[1765811335727,0.405504,3050.6,3049.3,0.0171]
[1765811336130,0.405504,3050.6,3049.3,0.59757529]
[1765811336329,0.01964926,3050.3,3049.4,10.22570638]
[1765811336581,0.01964926,3050.3,3049.4,6.55866726]
[1765811336742,6.402633,3050.0,3049.3,0.0171]
[1765811336932,0.600504,3049.4,3049.3,0.0171]
[1765811337257,0.405504,3049.3,3048.5,0.002]
[1765811337468,0.405504,3049.2,3048.5,0.002]
[1765811337630,0.405504,3049.2,3048.5,6.5625646]
[1765811337830,0.01964926,3048.7,3048.5,3.28226282]
[1765811338239,0.01964926,3048.9,3048.5,0.002]
[1765811338850,0.01964926,3049.2,3048.5,0.002]
[1765811339160,0.01964926,3048.9,3048.5,0.002]
[1765811339662,0.01964926,3049.2,3048.5,0.002]
[1765811340462,0.01964926,3048.8,3048.5,0.002]
[1765811340679,0.195,3049.4,3048.5,0.002]
[1765811340854,0.884004,3049.3,3048.5,0.002]
[1765811341172,1.6497179,3049.3,3048.5,0.002]
[1765811341475,0.01964926,3048.6,3047.2,3.28165761]
[1765811341772,0.4528,3049.7,3048.1,0.58047529]
[1765811342003,0.4528,3049.7,3048.0,13.12335956]
[1765811342004,0.4528,3050.4,3048.8,6.82697824]
[1765811342151,0.1942,3050.7,3049.5,0.58047529]
[1765811342474,3.27700627,3051.6,3049.5,0.58047529]
[1765811342475,0.4528,3052.2,3050.6,6.82697824]
[1765811342658,1.2341,3052.4,3050.7,1.17047529]
[1765811342966,1.2341,3052.4,3050.1,0.58047529]
[1765811342967,7.78632622,3052.4,3050.1,0.58047529]
[1765811343174,0.001,3053.3,3050.7,0.58047529]
[1765811343175,0.4528,3052.9,3050.7,0.58047529]
[1765811343391,0.4528,3052.9,3051.0,3.1212]
[1765811343675,0.4528,3052.9,3049.9,0.58047529]
[1765811343676,0.001,3051.1,3049.9,0.58047529]
[1765811343975,0.001,3051.1,3050.7,0.58047529]
[1765811344366,0.001,3051.1,3050.9,0.58047529]